[Event "*** SCC Grand Prix: Titled Tuesday Blitz"]
[Site "Chess.com"]
[Date "2020.06.23"]
[Round "6"]
[White "Thej11"]
[Black "Azatic"]
[Result "1-0"]
[WhiteElo "2453"]
[BlackElo "2540"]
[TimeControl "180+1"]
[EndTime "11:06:37 PDT"]
[Termination "Thej11 won on time"]

1. d4 {[%clk 0:03:00.9]} 1... Nf6 {[%clk 0:02:59.4]} 2. c4 {[%clk 0:03:00.4]}
2... g6 {[%clk 0:02:59.7]} 3. Nc3 {[%clk 0:02:59.5]} 3... Bg7 {[%clk 0:03:00.6]}
4. e4 {[%clk 0:02:58.6]} 4... O-O {[%clk 0:03:01.5]} 5. Be2 {[%clk 0:02:56.1]}
5... d6 {[%clk 0:03:01.4]} 6. Bg5 {[%clk 0:02:54.2]} 6... Na6 {[%clk 0:02:59.8]}
7. Qd2 {[%clk 0:02:52.1]} 7... e5 {[%clk 0:02:59.4]} 8. d5 {[%clk 0:02:49.8]}
8... Nc5 {[%clk 0:02:57.9]} 9. f3 {[%clk 0:02:49.1]} 9... a5 {[%clk 0:02:57.4]}
10. g4 {[%clk 0:02:43.5]} 10... c6 {[%clk 0:02:55.9]} 11. h4 {[%clk 0:02:38.1]}
11... Bd7 {[%clk 0:02:43.2]} 12. Nh3 {[%clk 0:02:36.9]} 12... Qb8 {[%clk
0:02:30]} 13. Nf2 {[%clk 0:02:34]} 13... cxd5 {[%clk 0:02:29.9]} 14. cxd5 {[%clk
0:02:32.7]} 14... b5 {[%clk 0:02:29.2]} 15. h5 {[%clk 0:02:20.6]} 15... b4
{[%clk 0:02:27.4]} 16. Ncd1 {[%clk 0:02:18.9]} 16... Bb5 {[%clk 0:02:27.5]} 17.
Ne3 {[%clk 0:02:09.9]} 17... Rc8 {[%clk 0:02:21.4]} 18. hxg6 {[%clk 0:01:57.4]}
18... fxg6 {[%clk 0:02:17.2]} 19. Kf1 {[%clk 0:01:56.5]} 19... Bxe2+ {[%clk
0:02:16.1]} 20. Qxe2 {[%clk 0:01:54.5]} 20... Ra7 {[%clk 0:02:00]} 21. Kg2
{[%clk 0:01:53.3]} 21... Rf7 {[%clk 0:01:45]} 22. Rh3 {[%clk 0:01:45.2]} 22...
Rcf8 {[%clk 0:01:30.1]} 23. Rah1 {[%clk 0:01:40.5]} 23... Qa7 {[%clk 0:01:26.6]}
24. Bh6 {[%clk 0:01:37.6]} 24... Bxh6 {[%clk 0:01:22.5]} 25. Rxh6 {[%clk
0:01:36.2]} 25... Nfxe4 {[%clk 0:00:44.2]} 26. Nxe4 {[%clk 0:01:32.1]} 26...
Nxe4 {[%clk 0:00:44]} 27. fxe4 {[%clk 0:01:31.7]} 27... Qd4 {[%clk 0:00:44.9]}
28. Nd1 {[%clk 0:01:24.7]} 28... a4 {[%clk 0:00:19.6]} 29. R6h3 {[%clk 0:01:22]}
29... b3 {[%clk 0:00:12.8]} 30. axb3 {[%clk 0:01:20.5]} 30... axb3 {[%clk
0:00:13.7]} 31. Rxb3 {[%clk 0:01:17.7]} 31... Rf4 {[%clk 0:00:13.8]} 32. Re3
{[%clk 0:01:10.9]} 32... Qb4 {[%clk 0:00:09.3]} 33. Kg3 {[%clk 0:00:58.9]} 33...
R8f7 {[%clk 0:00:07.9]} 34. Rh2 {[%clk 0:00:52.7]} 34... Qb6 {[%clk 0:00:05]}
35. Rf2 {[%clk 0:00:49.3]} 35... Qd8 {[%clk 0:00:04.9]} 36. Ref3 {[%clk
0:00:47.5]} 36... Qg5 {[%clk 0:00:04.5]} 37. Rxf4 {[%clk 0:00:45.1]} 37... exf4+
{[%clk 0:00:04.8]} 38. Kf3 {[%clk 0:00:41.7]} 38... h5 {[%clk 0:00:03.2]} 39.
Rg2 {[%clk 0:00:41]} 39... hxg4+ {[%clk 0:00:01.9]} 40. Rxg4 {[%clk 0:00:40.1]}
40... Qh5 {[%clk 0:00:02.8]} 41. Nf2 {[%clk 0:00:39]} 41... Rb7 {[%clk
0:00:01.7]} 42. Qc2 {[%clk 0:00:37.1]} 1-0

[Event "*** SCC Grand Prix: Titled Tuesday Blitz"]
[Site "Chess.com"]
[Date "2020.06.23"]
[Round "6"]
[White "Iskusnyh"]
[Black "chessmaugli"]
[Result "1-0"]
[WhiteElo "2453"]
[BlackElo "2311"]
[TimeControl "180+1"]
[EndTime "11:06:37 PDT"]
[Termination "Iskusnyh won on time"]

1. d4 {[%clk 0:02:59.2]} 1... Nf6 {[%clk 0:02:59]} 2. c4 {[%clk 0:02:58.4]} 2...
Nc6 {[%clk 0:02:58.7]} 3. Nf3 {[%clk 0:02:56.6]} 3... e6 {[%clk 0:02:57.1]} 4.
g3 {[%clk 0:02:53.2]} 4... d6 {[%clk 0:02:53.7]} 5. Bg2 {[%clk 0:02:51]} 5... g6
{[%clk 0:02:53.6]} 6. O-O {[%clk 0:02:50.3]} 6... Bg7 {[%clk 0:02:53.5]} 7. Nc3
{[%clk 0:02:50.4]} 7... O-O {[%clk 0:02:53.2]} 8. e4 {[%clk 0:02:39.9]} 8... e5
{[%clk 0:02:48.8]} 9. d5 {[%clk 0:02:36.9]} 9... Ne7 {[%clk 0:02:47.4]} 10. Ne1
{[%clk 0:02:29.7]} 10... a5 {[%clk 0:02:45.6]} 11. Nd3 {[%clk 0:02:26.1]} 11...
Nd7 {[%clk 0:02:44]} 12. Be3 {[%clk 0:02:21.8]} 12... b6 {[%clk 0:02:43.1]} 13.
Qd2 {[%clk 0:02:19.6]} 13... Nc5 {[%clk 0:02:41.7]} 14. Nxc5 {[%clk 0:02:14.2]}
14... bxc5 {[%clk 0:02:41]} 15. f4 {[%clk 0:02:01.1]} 15... exf4 {[%clk
0:02:39.6]} 16. gxf4 {[%clk 0:01:54]} 16... f5 {[%clk 0:02:35.6]} 17. e5 {[%clk
0:01:52.7]} 17... Rb8 {[%clk 0:02:14.3]} 18. e6 {[%clk 0:01:47.4]} 18... Ba6
{[%clk 0:01:58.1]} 19. b3 {[%clk 0:01:45.3]} 19... a4 {[%clk 0:01:57.8]} 20.
Nxa4 {[%clk 0:01:42.5]} 20... c6 {[%clk 0:01:44.3]} 21. dxc6 {[%clk 0:01:24.3]}
21... Rc8 {[%clk 0:01:24.1]} 22. Rad1 {[%clk 0:01:18.3]} 22... Nxc6 {[%clk
0:01:04.8]} 23. Qxd6 {[%clk 0:01:03.5]} 23... Bd4 {[%clk 0:00:58.3]} 24. Rxd4
{[%clk 0:00:31.2]} 24... cxd4 {[%clk 0:00:58]} 25. Qxd8 {[%clk 0:00:31.4]} 25...
Rfxd8 {[%clk 0:00:56.9]} 26. Bd2 {[%clk 0:00:28.9]} 26... Ne7 {[%clk 0:00:48.5]}
27. Nb6 {[%clk 0:00:25]} 27... Rc7 {[%clk 0:00:34.4]} 28. Nd5 {[%clk 0:00:24.7]}
28... Nxd5 {[%clk 0:00:31.2]} 29. Bxd5 {[%clk 0:00:23.9]} 29... Rxd5 {[%clk
0:00:18.9]} 30. cxd5 {[%clk 0:00:24.1]} 30... Bxf1 {[%clk 0:00:18.6]} 31. Kxf1
{[%clk 0:00:24.6]} 31... Kg7 {[%clk 0:00:16.2]} 32. Ke2 {[%clk 0:00:23.7]} 32...
Kf6 {[%clk 0:00:14.9]} 33. Kd3 {[%clk 0:00:23.8]} 33... Rb7 {[%clk 0:00:11.1]}
34. Be1 {[%clk 0:00:23.7]} 34... Ke7 {[%clk 0:00:09.9]} 35. Kxd4 {[%clk
0:00:20.8]} 35... Kd6 {[%clk 0:00:09.8]} 36. Kc4 {[%clk 0:00:20.4]} 36... Rc7+
{[%clk 0:00:09.6]} 37. Kd4 {[%clk 0:00:20.5]} 37... Rb7 {[%clk 0:00:09.2]} 38.
Bc3 {[%clk 0:00:20.4]} 38... Rb6 {[%clk 0:00:07.3]} 39. Kc4 {[%clk 0:00:17.6]}
39... Rb7 {[%clk 0:00:06.6]} 40. Be5+ {[%clk 0:00:18]} 40... Ke7 {[%clk
0:00:05.8]} 41. Bd4 {[%clk 0:00:18.3]} 41... Rc7+ {[%clk 0:00:02.8]} 42. Bc5+
{[%clk 0:00:18.5]} 1-0

[Event "*** SCC Grand Prix: Titled Tuesday Blitz"]
[Site "Chess.com"]
[Date "2020.06.23"]
[Round "6"]
[White "Lupul_Cenusiu"]
[Black "ZverevLev"]
[Result "1-0"]
[WhiteElo "2567"]
[BlackElo "2349"]
[TimeControl "180+1"]
[EndTime "11:06:38 PDT"]
[Termination "Lupul_Cenusiu won on time"]

1. d4 {[%clk 0:03:00.9]} 1... Nf6 {[%clk 0:02:58.9]} 2. c4 {[%clk 0:02:59.9]}
2... e6 {[%clk 0:02:57.7]} 3. Nc3 {[%clk 0:02:59.8]} 3... Bb4 {[%clk 0:02:56.5]}
4. e3 {[%clk 0:02:59.8]} 4... d5 {[%clk 0:02:52.1]} 5. Nf3 {[%clk 0:02:57.6]}
5... O-O {[%clk 0:02:49.4]} 6. Be2 {[%clk 0:02:55.6]} 6... dxc4 {[%clk
0:02:48.2]} 7. Bxc4 {[%clk 0:02:54.8]} 7... a6 {[%clk 0:02:46.4]} 8. a4 {[%clk
0:02:53.2]} 8... b6 {[%clk 0:02:37.8]} 9. O-O {[%clk 0:02:52.4]} 9... Bb7 {[%clk
0:02:35.3]} 10. Qe2 {[%clk 0:02:52.3]} 10... Nbd7 {[%clk 0:02:34]} 11. Bd2
{[%clk 0:02:46.5]} 11... Bxc3 {[%clk 0:02:32]} 12. bxc3 {[%clk 0:02:45.5]} 12...
Ne4 {[%clk 0:02:31.5]} 13. Rfd1 {[%clk 0:02:41.7]} 13... c5 {[%clk 0:02:27.3]}
14. Be1 {[%clk 0:02:40.3]} 14... Qc7 {[%clk 0:02:25]} 15. Rdb1 {[%clk
0:02:34.5]} 15... Rfc8 {[%clk 0:02:20.3]} 16. Bd3 {[%clk 0:02:33.5]} 16... Ndf6
{[%clk 0:02:16.1]} 17. h3 {[%clk 0:02:30.1]} 17... c4 {[%clk 0:02:02.2]} 18. Bc2
{[%clk 0:02:29]} 18... Qc6 {[%clk 0:01:54.4]} 19. Ne5 {[%clk 0:02:13.3]} 19...
Nxc3 {[%clk 0:01:42]} 20. Qf1 {[%clk 0:02:12.6]} 20... Qxg2+ {[%clk 0:01:23.7]}
21. Qxg2 {[%clk 0:02:11.6]} 21... Bxg2 {[%clk 0:01:22.9]} 22. Kxg2 {[%clk
0:02:11.3]} 22... Nxb1 {[%clk 0:01:21.9]} 23. Rxb1 {[%clk 0:02:11]} 23... b5
{[%clk 0:01:19]} 24. a5 {[%clk 0:01:51.7]} 24... Nd5 {[%clk 0:01:01.7]} 25. Nd7
{[%clk 0:01:40]} 25... Rc7 {[%clk 0:00:58.5]} 26. Nb6 {[%clk 0:01:37.7]} 26...
Rb8 {[%clk 0:00:47.6]} 27. Be4 {[%clk 0:01:31.2]} 27... Nxb6 {[%clk 0:00:40.6]}
28. axb6 {[%clk 0:01:30.3]} 28... Rxb6 {[%clk 0:00:41.3]} 29. Ba5 {[%clk
0:01:29.4]} 29... Rcb7 {[%clk 0:00:39.2]} 30. Bxb7 {[%clk 0:01:27.2]} 30... Rxb7
{[%clk 0:00:38.8]} 31. Kf3 {[%clk 0:01:23.2]} 31... f6 {[%clk 0:00:36.4]} 32. e4
{[%clk 0:01:22.9]} 32... Kf7 {[%clk 0:00:35.7]} 33. Ke3 {[%clk 0:01:18.6]} 33...
Ke7 {[%clk 0:00:34.5]} 34. d5 {[%clk 0:01:18.3]} 34... e5 {[%clk 0:00:32.4]} 35.
f4 {[%clk 0:01:17.2]} 35... Kd6 {[%clk 0:00:29.8]} 36. fxe5+ {[%clk 0:01:14.2]}
36... Kxe5 {[%clk 0:00:24.3]} 37. Bc3+ {[%clk 0:01:07.9]} 37... Kd6 {[%clk
0:00:23.8]} 38. Kd4 {[%clk 0:01:08]} 38... Ra7 {[%clk 0:00:20.4]} 39. Ra1 {[%clk
0:01:05.2]} 39... Kd7 {[%clk 0:00:13.5]} 40. Ba5 {[%clk 0:01:03.5]} 40... Rb7
{[%clk 0:00:11.8]} 41. Bb4 {[%clk 0:01:01]} 41... Ra7 {[%clk 0:00:10.7]} 42. e5
{[%clk 0:01:01.1]} 42... fxe5+ {[%clk 0:00:09.8]} 43. Kxe5 {[%clk 0:01:01.1]}
43... Kc7 {[%clk 0:00:10.4]} 44. Bc5 {[%clk 0:00:59.9]} 44... Ra8 {[%clk
0:00:10]} 45. Rf1 {[%clk 0:00:57.5]} 45... Re8+ {[%clk 0:00:09.4]} 46. Kd4
{[%clk 0:00:57.4]} 46... a5 {[%clk 0:00:07.9]} 47. Rf7+ {[%clk 0:00:56.7]} 47...
Kb8 {[%clk 0:00:07.7]} 48. d6 {[%clk 0:00:55.3]} 48... Rd8 {[%clk 0:00:07.3]}
49. Kd5 {[%clk 0:00:52.8]} 49... c3 {[%clk 0:00:07.1]} 50. Bb6 {[%clk
0:00:47.7]} 50... c2 {[%clk 0:00:01.1]} 51. Rc7 {[%clk 0:00:45.5]} 1-0

[Event "*** SCC Grand Prix: Titled Tuesday Blitz"]
[Site "Chess.com"]
[Date "2020.06.23"]
[Round "6"]
[White "MaxVavulin"]
[Black "colegiodemadrid"]
[Result "0-1"]
[WhiteElo "2554"]
[BlackElo "2396"]
[TimeControl "180+1"]
[EndTime "11:06:39 PDT"]
[Termination "colegiodemadrid won on time"]

1. e4 {[%clk 0:03:00.9]} 1... e5 {[%clk 0:02:58.9]} 2. Nf3 {[%clk 0:03:00.5]}
2... Nc6 {[%clk 0:02:59.3]} 3. Bb5 {[%clk 0:03:00.6]} 3... g6 {[%clk 0:02:58.7]}
4. c3 {[%clk 0:02:58.7]} 4... d6 {[%clk 0:02:58.9]} 5. d4 {[%clk 0:02:58.3]}
5... Bd7 {[%clk 0:02:59.4]} 6. O-O {[%clk 0:02:56.6]} 6... Bg7 {[%clk
0:02:59.4]} 7. Re1 {[%clk 0:02:55.8]} 7... Nf6 {[%clk 0:02:59.3]} 8. Nbd2 {[%clk
0:02:44]} 8... O-O {[%clk 0:02:59]} 9. Ba4 {[%clk 0:02:38.7]} 9... a6 {[%clk
0:02:58.7]} 10. Nf1 {[%clk 0:02:37.8]} 10... exd4 {[%clk 0:02:55.7]} 11. cxd4
{[%clk 0:02:37.3]} 11... Bg4 {[%clk 0:02:55.3]} 12. Bxc6 {[%clk 0:02:08.7]}
12... bxc6 {[%clk 0:02:52.6]} 13. h3 {[%clk 0:02:07.9]} 13... Be6 {[%clk
0:02:49.9]} 14. Qc2 {[%clk 0:01:54]} 14... Bd7 {[%clk 0:02:42]} 15. Bf4 {[%clk
0:01:50]} 15... Qb8 {[%clk 0:02:38.4]} 16. Rad1 {[%clk 0:01:43.2]} 16... Qb5
{[%clk 0:02:36.5]} 17. Ng3 {[%clk 0:01:37.7]} 17... Rab8 {[%clk 0:02:35.3]} 18.
Bc1 {[%clk 0:01:38.1]} 18... Rfe8 {[%clk 0:02:33.9]} 19. Re3 {[%clk 0:01:31.4]}
19... a5 {[%clk 0:02:23.1]} 20. Rde1 {[%clk 0:01:27.9]} 20... a4 {[%clk
0:02:21.2]} 21. Ra3 {[%clk 0:01:26.4]} 21... Ra8 {[%clk 0:01:56.6]} 22. Re2
{[%clk 0:01:25.7]} 22... Reb8 {[%clk 0:01:50.6]} 23. Rc3 {[%clk 0:01:12.4]}
23... h6 {[%clk 0:01:34.7]} 24. Be3 {[%clk 0:01:06.6]} 24... Kh7 {[%clk
0:01:33.3]} 25. Bf4 {[%clk 0:00:58.1]} 25... Ra6 {[%clk 0:01:22.7]} 26. Nd2
{[%clk 0:00:41.4]} 26... Nh5 {[%clk 0:01:13.5]} 27. Nxh5 {[%clk 0:00:39.6]}
27... Qxe2 {[%clk 0:01:13.5]} 28. Nxg7 {[%clk 0:00:33.6]} 28... Kxg7 {[%clk
0:01:12.9]} 29. Re3 {[%clk 0:00:25.9]} 29... Qb5 {[%clk 0:01:08.9]} 30. Nc4
{[%clk 0:00:19.8]} 30... Be6 {[%clk 0:01:07.8]} 31. d5 {[%clk 0:00:10.5]} 31...
cxd5 {[%clk 0:01:07.5]} 32. Qc3+ {[%clk 0:00:11.4]} 32... Kh7 {[%clk 0:01:07.8]}
33. exd5 {[%clk 0:00:09.5]} 33... Bxd5 {[%clk 0:01:07.9]} 34. b3 {[%clk
0:00:06.5]} 34... axb3 {[%clk 0:01:05.5]} 35. axb3 {[%clk 0:00:06.9]} 35... Bxc4
{[%clk 0:00:49.7]} 36. bxc4 {[%clk 0:00:06.8]} 36... Qf5 {[%clk 0:00:50.1]} 37.
Qd4 {[%clk 0:00:05.3]} 37... g5 {[%clk 0:00:36.6]} 38. Bg3 {[%clk 0:00:05]}
38... Rb1+ {[%clk 0:00:24]} 39. Kh2 {[%clk 0:00:04.9]} 39... Raa1 {[%clk
0:00:24.7]} 40. Bxd6 {[%clk 0:00:03.1]} 40... cxd6 {[%clk 0:00:20.3]} 41. Re4
{[%clk 0:00:02.1]} 41... Rh1+ {[%clk 0:00:18.8]} 42. Kg3 {[%clk 0:00:02.1]}
42... Ra3+ {[%clk 0:00:17.9]} 43. f3 {[%clk 0:00:01.9]} 43... Rf1 {[%clk
0:00:16]} 0-1

[Event "*** SCC Grand Prix: Titled Tuesday Blitz"]
[Site "Chess.com"]
[Date "2020.06.23"]
[Round "6"]
[White "hansen"]
[Black "MarcoRiehle"]
[Result "0-1"]
[WhiteElo "2971"]
[BlackElo "2712"]
[TimeControl "180+1"]
[EndTime "11:06:40 PDT"]
[Termination "MarcoRiehle won on time"]

1. e4 {[%clk 0:03:00.9]} 1... e5 {[%clk 0:02:59.9]} 2. Nf3 {[%clk 0:02:58.5]}
2... Nf6 {[%clk 0:03:00.4]} 3. Nxe5 {[%clk 0:02:49.9]} 3... Nxe4 {[%clk
0:02:59.5]} 4. Qe2 {[%clk 0:02:47.8]} 4... Qe7 {[%clk 0:02:59.8]} 5. Qxe4 {[%clk
0:02:46.9]} 5... d6 {[%clk 0:03:00.3]} 6. d4 {[%clk 0:02:37.4]} 6... dxe5 {[%clk
0:02:59.4]} 7. dxe5 {[%clk 0:02:23.1]} 7... Nc6 {[%clk 0:02:58.6]} 8. Nc3 {[%clk
0:02:23.4]} 8... Qxe5 {[%clk 0:02:58]} 9. Qxe5+ {[%clk 0:01:57.3]} 9... Nxe5
{[%clk 0:02:58.9]} 10. Nb5 {[%clk 0:01:57.5]} 10... Bb4+ {[%clk 0:02:57]} 11. c3
{[%clk 0:01:54.4]} 11... Ba5 {[%clk 0:02:56.6]} 12. Bf4 {[%clk 0:01:54.6]} 12...
f6 {[%clk 0:02:52.1]} 13. O-O-O {[%clk 0:01:53.6]} 13... O-O {[%clk 0:02:50.7]}
14. f3 {[%clk 0:01:51]} 14... Be6 {[%clk 0:02:46.5]} 15. Kb1 {[%clk 0:01:39.2]}
15... Rad8 {[%clk 0:02:40.2]} 16. Be2 {[%clk 0:01:37.8]} 16... g5 {[%clk
0:02:27.2]} 17. Bg3 {[%clk 0:01:30.7]} 17... Bb6 {[%clk 0:02:22]} 18. h4 {[%clk
0:01:29.2]} 18... g4 {[%clk 0:02:19.6]} 19. Nd4 {[%clk 0:01:27.4]} 19... Bc8
{[%clk 0:02:05.5]} 20. h5 {[%clk 0:01:12.5]} 20... a6 {[%clk 0:01:54]} 21. Rhe1
{[%clk 0:00:45.5]} 21... c5 {[%clk 0:01:50.8]} 22. Nb3 {[%clk 0:00:30.7]} 22...
Bf5+ {[%clk 0:01:40.8]} 23. Kc1 {[%clk 0:00:30.7]} 23... Nd3+ {[%clk 0:01:31.2]}
24. Bxd3 {[%clk 0:00:29.9]} 24... Bxd3 {[%clk 0:01:32.1]} 25. Bf2 {[%clk
0:00:13.1]} 25... Bc7 {[%clk 0:00:35.5]} 26. fxg4 {[%clk 0:00:09.3]} 26... b6
{[%clk 0:00:33.4]} 27. Be3 {[%clk 0:00:07.4]} 27... Rfe8 {[%clk 0:00:25.6]} 28.
Bh6 {[%clk 0:00:05.9]} 28... Rxe1 {[%clk 0:00:24.5]} 29. Rxe1 {[%clk 0:00:06.1]}
29... Kf7 {[%clk 0:00:23.4]} 30. Nd2 {[%clk 0:00:05.4]} 30... Rg8 {[%clk
0:00:22.1]} 31. Re3 {[%clk 0:00:03]} 31... c4 {[%clk 0:00:20.8]} 32. g5 {[%clk
0:00:03.1]} 32... fxg5 {[%clk 0:00:20.4]} 33. Rf3+ {[%clk 0:00:02.9]} 33... Ke6
{[%clk 0:00:20.4]} 34. Kd1 {[%clk 0:00:02.6]} 34... Bf4 {[%clk 0:00:17.3]} 35.
b3 {[%clk 0:00:03.1]} 35... b5 {[%clk 0:00:15.3]} 36. g3 {[%clk 0:00:03.4]}
36... Bd6 {[%clk 0:00:15.8]} 37. Re3+ {[%clk 0:00:02.7]} 37... Kd5 {[%clk
0:00:15.9]} 38. Nf3 {[%clk 0:00:02.8]} 38... Bxg3 {[%clk 0:00:16]} 39. Bxg5
{[%clk 0:00:02.6]} 39... Bc7 {[%clk 0:00:11.9]} 40. Be7 {[%clk 0:00:02.4]} 40...
Rg2 {[%clk 0:00:10.8]} 41. bxc4+ {[%clk 0:00:02]} 41... bxc4 {[%clk 0:00:11.1]}
42. Nd2 {[%clk 0:00:02.1]} 42... Bf4 {[%clk 0:00:10.5]} 0-1

[Event "*** SCC Grand Prix: Titled Tuesday Blitz"]
[Site "Chess.com"]
[Date "2020.06.23"]
[Round "6"]
[White "Nafania1"]
[Black "GukeshDommaraju"]
[Result "0-1"]
[WhiteElo "2509"]
[BlackElo "2706"]
[TimeControl "180+1"]
[EndTime "11:06:40 PDT"]
[Termination "GukeshDommaraju won by resignation"]

1. e4 {[%clk 0:03:00.9]} 1... Nc6 {[%clk 0:02:59.2]} 2. Nf3 {[%clk 0:03:00.4]}
2... e5 {[%clk 0:02:58.3]} 3. Bb5 {[%clk 0:02:59.5]} 3... a6 {[%clk 0:02:57.2]}
4. Ba4 {[%clk 0:02:59.6]} 4... Nf6 {[%clk 0:02:56.6]} 5. O-O {[%clk 0:02:59.7]}
5... Be7 {[%clk 0:02:55.7]} 6. Re1 {[%clk 0:02:59.1]} 6... b5 {[%clk 0:02:53.4]}
7. Bb3 {[%clk 0:02:59.2]} 7... d6 {[%clk 0:02:53.4]} 8. c3 {[%clk 0:02:59.2]}
8... O-O {[%clk 0:02:51.6]} 9. d4 {[%clk 0:02:59.3]} 9... Bg4 {[%clk 0:02:46.7]}
10. Be3 {[%clk 0:02:59.2]} 10... Na5 {[%clk 0:02:38.1]} 11. dxe5 {[%clk
0:02:53.7]} 11... Bxf3 {[%clk 0:02:08.2]} 12. Qxf3 {[%clk 0:02:51.9]} 12... dxe5
{[%clk 0:02:08.5]} 13. Nd2 {[%clk 0:02:49]} 13... Nxb3 {[%clk 0:02:08]} 14. axb3
{[%clk 0:02:33]} 14... h6 {[%clk 0:02:03]} 15. b4 {[%clk 0:02:32.5]} 15... Qd3
{[%clk 0:02:02.4]} 16. Qe2 {[%clk 0:02:26.6]} 16... Rfd8 {[%clk 0:01:45.6]} 17.
Qxd3 {[%clk 0:02:25.8]} 17... Rxd3 {[%clk 0:01:46.5]} 18. f3 {[%clk 0:02:26.2]}
18... Nd7 {[%clk 0:01:42.7]} 19. Nb3 {[%clk 0:02:25.9]} 19... Nb6 {[%clk
0:01:38.1]} 20. Bc5 {[%clk 0:02:15.1]} 20... Bg5 {[%clk 0:01:31.4]} 21. Red1
{[%clk 0:01:57.7]} 21... Rxd1+ {[%clk 0:01:29.5]} 22. Rxd1 {[%clk 0:01:57.2]}
22... Nc4 {[%clk 0:01:29.5]} 23. Rd7 {[%clk 0:01:57]} 23... Nxb2 {[%clk
0:01:20.9]} 24. Rxc7 {[%clk 0:01:35.8]} 24... Rd8 {[%clk 0:01:20.8]} 25. Rc6
{[%clk 0:01:33.8]} 25... Rd1+ {[%clk 0:01:06.8]} 26. Kf2 {[%clk 0:01:33.4]}
26... Rb1 {[%clk 0:01:00.5]} 27. Na5 {[%clk 0:01:28.5]} 27... Nd1+ {[%clk
0:00:55.6]} 28. Kg3 {[%clk 0:01:26.4]} 28... Bf4+ {[%clk 0:00:54.3]} 29. Kh3
{[%clk 0:01:26.1]} 29... Nxc3 {[%clk 0:00:50.9]} 30. Rxa6 {[%clk 0:01:22.3]}
30... Kh7 {[%clk 0:00:41.2]} 31. Rb6 {[%clk 0:01:21.7]} 31... Bd2 {[%clk
0:00:36.5]} 32. Nc6 {[%clk 0:01:18.8]} 32... f6 {[%clk 0:00:31.7]} 33. Ne7
{[%clk 0:01:18.6]} 33... Rb3 {[%clk 0:00:27.9]} 34. Kg4 {[%clk 0:01:08.6]} 34...
Rb2 {[%clk 0:00:14.2]} 35. Rb7 {[%clk 0:01:08.4]} 35... Na4 {[%clk 0:00:10.5]}
36. Nf5 {[%clk 0:01:06.2]} 36... Bxb4 {[%clk 0:00:09.8]} 37. Rxg7+ {[%clk
0:01:04.9]} 37... Kh8 {[%clk 0:00:10.3]} 38. Bxb4 {[%clk 0:01:03.9]} 38... Rxg2+
{[%clk 0:00:10.3]} 39. Kh5 {[%clk 0:01:02]} 39... Rxg7 {[%clk 0:00:10.7]} 40.
Nxg7 {[%clk 0:01:01.1]} 40... Kxg7 {[%clk 0:00:11.6]} 41. Bd2 {[%clk 0:01:00.1]}
41... Kh7 {[%clk 0:00:10.9]} 42. h4 {[%clk 0:00:56]} 42... Nc5 {[%clk
0:00:07.1]} 43. Kg4 {[%clk 0:00:55.2]} 43... Nd3 {[%clk 0:00:06.8]} 44. Kf5
{[%clk 0:00:52.1]} 44... Kg7 {[%clk 0:00:06.8]} 45. Ke6 {[%clk 0:00:46.5]} 45...
b4 {[%clk 0:00:07.3]} 46. Kd5 {[%clk 0:00:46.8]} 46... b3 {[%clk 0:00:07.8]} 47.
Bc3 {[%clk 0:00:37.3]} 47... b2 {[%clk 0:00:08.7]} 48. Bxb2 {[%clk 0:00:37.1]}
48... Nxb2 {[%clk 0:00:09.6]} 0-1

[Event "*** SCC Grand Prix: Titled Tuesday Blitz"]
[Site "Chess.com"]
[Date "2020.06.23"]
[Round "6"]
[White "VincentKeymer"]
[Black "deep306"]
[Result "1-0"]
[WhiteElo "2840"]
[BlackElo "2642"]
[TimeControl "180+1"]
[EndTime "11:06:41 PDT"]
[Termination "VincentKeymer won on time"]

1. Nf3 {[%clk 0:03:00.9]} 1... b6 {[%clk 0:02:59.2]} 2. d4 {[%clk 0:02:59.6]}
2... Bb7 {[%clk 0:02:59.2]} 3. c4 {[%clk 0:03:00.1]} 3... e6 {[%clk 0:02:59.2]}
4. Qc2 {[%clk 0:02:56.6]} 4... Nf6 {[%clk 0:02:58.3]} 5. Nc3 {[%clk 0:02:56.2]}
5... Bb4 {[%clk 0:02:56.1]} 6. a3 {[%clk 0:02:54.3]} 6... Bxc3+ {[%clk
0:02:55.7]} 7. Qxc3 {[%clk 0:02:55.2]} 7... Ne4 {[%clk 0:02:53.3]} 8. Qc2 {[%clk
0:02:55.2]} 8... f5 {[%clk 0:02:53.8]} 9. e3 {[%clk 0:02:53.4]} 9... O-O {[%clk
0:02:52.8]} 10. b4 {[%clk 0:02:53.5]} 10... d6 {[%clk 0:02:51.9]} 11. Bb2 {[%clk
0:02:53.7]} 11... Nd7 {[%clk 0:02:51.7]} 12. Be2 {[%clk 0:02:50.9]} 12... Ng5
{[%clk 0:02:32.8]} 13. d5 {[%clk 0:02:15.7]} 13... exd5 {[%clk 0:02:15.9]} 14.
O-O-O {[%clk 0:02:10.9]} 14... c5 {[%clk 0:02:10.2]} 15. Kb1 {[%clk 0:02:01.9]}
15... cxb4 {[%clk 0:02:08.1]} 16. axb4 {[%clk 0:02:02.8]} 16... Rc8 {[%clk
0:02:07.6]} 17. Nd4 {[%clk 0:01:58.8]} 17... dxc4 {[%clk 0:01:50.5]} 18. f3
{[%clk 0:01:43.7]} 18... c3 {[%clk 0:01:35.7]} 19. Bxc3 {[%clk 0:01:35.4]} 19...
Ne5 {[%clk 0:01:24.6]} 20. Qb3+ {[%clk 0:01:17.9]} 20... Kh8 {[%clk 0:01:21.1]}
21. h4 {[%clk 0:01:16.3]} 21... Ngf7 {[%clk 0:01:07.6]} 22. Ne6 {[%clk
0:01:05.4]} 22... Qe7 {[%clk 0:01:02]} 23. Nxf8 {[%clk 0:01:04.8]} 23... Qxf8
{[%clk 0:01:01.9]} 24. Rc1 {[%clk 0:01:00.5]} 24... Nc6 {[%clk 0:00:20.4]} 25.
Bc4 {[%clk 0:00:46]} 25... Nfe5 {[%clk 0:00:19.6]} 26. Bd5 {[%clk 0:00:45.6]}
26... a5 {[%clk 0:00:17.1]} 27. b5 {[%clk 0:00:42.6]} 27... Nd8 {[%clk
0:00:13.5]} 28. Bxe5 {[%clk 0:00:31.4]} 28... dxe5 {[%clk 0:00:13.3]} 29. Bxb7
{[%clk 0:00:28.8]} 29... Nxb7 {[%clk 0:00:12.4]} 30. Rxc8 {[%clk 0:00:29.3]}
30... Qxc8 {[%clk 0:00:12.1]} 31. Rc1 {[%clk 0:00:29.8]} 31... Nc5 {[%clk
0:00:12.1]} 32. Qd5 {[%clk 0:00:27.2]} 32... h6 {[%clk 0:00:11.7]} 33. Qxe5
{[%clk 0:00:17.2]} 33... Qd7 {[%clk 0:00:11.8]} 34. Rxc5 {[%clk 0:00:16.8]}
34... bxc5 {[%clk 0:00:10.1]} 35. Qxc5 {[%clk 0:00:17.3]} 35... Qd3+ {[%clk
0:00:09.6]} 36. Kb2 {[%clk 0:00:17.2]} 36... a4 {[%clk 0:00:09.1]} 37. Qb4
{[%clk 0:00:15.8]} 37... Qxe3 {[%clk 0:00:07.8]} 38. b6 {[%clk 0:00:14.6]} 38...
a3+ {[%clk 0:00:07.2]} 39. Ka2 {[%clk 0:00:15]} 39... Qf2+ {[%clk 0:00:05.1]}
40. Kxa3 {[%clk 0:00:15.1]} 40... Qxg2 {[%clk 0:00:04.9]} 41. b7 {[%clk
0:00:14.9]} 41... Qxf3+ {[%clk 0:00:05.2]} 42. Qb3 {[%clk 0:00:11.9]} 1-0